[Event "Titled Tuesday Blitz June 27 Early 2023"]
[White "Kuznetsov, Mikhail"]
[Black "Gedajlovic, Max"]
[WhiteFideId "4117190"]
[BlackFideId "2616840"]
[WhiteElo "2408"]
[BlackElo "2703"]
[Result "0-1"]
[Round "5"]
[TimeControl "180+2"]
[Date "2023.06.27"]
[WhiteClock "0:00:00"]
[BlackClock "0:01:04"]
[Board "80"]

1. Nf3 {[%clk 0:02:24]}  d5 {[%clk 0:02:59]} 2. g3 {[%clk 0:02:24]}  g6 {[%clk 0:02:59]} 3. d4 {[%clk 0:02:23]}  Bg7 {[%clk 0:02:58]} 4. Bg2 {[%clk 0:02:24]}  c6 {[%clk 0:02:57]} 5. O-O {[%clk 0:02:25]}  Nf6 {[%clk 0:02:57]} 6. c4 {[%clk 0:02:25]}  dxc4 {[%clk 0:02:57]} 7. Ne5 {[%clk 0:02:23]}  Be6 {[%clk 0:02:53]} 8. Na3 {[%clk 0:02:22]}  O-O {[%clk 0:02:45]} 9. Naxc4 {[%clk 0:02:16]}  Nbd7 {[%clk 0:02:45]} 10. b3 {[%clk 0:02:12]}  Nxe5 {[%clk 0:02:44]} 11. Nxe5 {[%clk 0:02:13]}  Nd7 {[%clk 0:02:42]} 12. Nf3 {[%clk 0:02:09]}  Bd5 {[%clk 0:02:41]} 13. Re1 {[%clk 0:02:00]}  e5 {[%clk 0:02:39]} 14. e4 {[%clk 0:01:58]}  Be6 {[%clk 0:02:37]} 15. Bb2 {[%clk 0:01:57]}  Bg4 {[%clk 0:02:36]} 16. dxe5 {[%clk 0:01:27]}  Qe7 {[%clk 0:02:35]} 17. h3 {[%clk 0:01:17]}  Bxf3 {[%clk 0:02:35]} 18. Qxf3 {[%clk 0:01:17]}  Nxe5 {[%clk 0:02:34]} 19. Qe2 {[%clk 0:01:17]}  Rad8 {[%clk 0:02:34]} 20. Rad1 {[%clk 0:01:15]}  Qc5 {[%clk 0:02:30]} 21. Kh2 {[%clk 0:01:08]}  Rfe8 {[%clk 0:02:18]} 22. f4 {[%clk 0:01:06]}  Nd7 {[%clk 0:02:18]} 23. e5 {[%clk 0:00:54]}  Nf8 {[%clk 0:02:16]} 24. Rxd8 {[%clk 0:00:46]}  Rxd8 {[%clk 0:02:17]} 25. Rd1 {[%clk 0:00:47]}  Rxd1 {[%clk 0:02:16]} 26. Qxd1 {[%clk 0:00:48]}  Qf2 {[%clk 0:02:16]} 27. Qd4 {[%clk 0:00:28]}  Qe2 {[%clk 0:02:16]} 28. a4 {[%clk 0:00:23]}  Ne6 {[%clk 0:02:15]} 29. Qc3 {[%clk 0:00:23]}  Bf8 {[%clk 0:02:14]} 30. Bc1 {[%clk 0:00:22]}  Bc5 {[%clk 0:02:12]} 31. b4 {[%clk 0:00:18]}  Bd4 {[%clk 0:02:11]} 32. Qf3 {[%clk 0:00:17]}  Qe1 {[%clk 0:02:07]} 33. Qf1 {[%clk 0:00:10]}  Qxb4 {[%clk 0:02:07]} 34. f5 {[%clk 0:00:09]}  gxf5 {[%clk 0:01:59]} 35. Bh6 {[%clk 0:00:09]}  Bxe5 {[%clk 0:01:49]} 36. Qxf5 {[%clk 0:00:09]}  Bg7 {[%clk 0:01:49]} 37. Bxg7 {[%clk 0:00:07]}  Kxg7 {[%clk 0:01:49]} 38. Qe5+ {[%clk 0:00:07]}  Kf8 {[%clk 0:01:39]} 39. Qb8+ {[%clk 0:00:07]}  Ke7 {[%clk 0:01:40]} 40. Qxa7 {[%clk 0:00:06]}  Kd7 {[%clk 0:01:16]} 41. a5 {[%clk 0:00:06]}  Qb5 {[%clk 0:01:15]} 42. Qa8 {[%clk 0:00:03]}  Nd8 {[%clk 0:01:13]} 43. Qb8 {[%clk 0:00:02]}  Qxa5 {[%clk 0:01:11]} 44. Qf4 {[%clk 0:00:02]}  Qc5 {[%clk 0:01:05]} 45. Qxf7+ {[%clk 0:00:00]}  Nxf7 {[%clk 0:01:04]} 0-1


[Site "https://www.chess.com"]

[Event "Titled Tuesday Blitz June 27 Early 2023"]
[White "Molina, Roberto Junio Brito"]
[Black "Chor, Kevin"]
[WhiteFideId "2109450"]
[BlackFideId "2090740"]
[WhiteElo "2837"]
[BlackElo "2540"]
[Result "1-0"]
[Round "5"]
[TimeControl "180+2"]
[Date "2023.06.27"]
[WhiteClock "0:01:47"]
[BlackClock "0:00:46"]
[Board "82"]

1. d4 {[%clk 0:03:00]}  Nf6 {[%clk 0:02:56]} 2. Nf3 {[%clk 0:03:00]}  g6 {[%clk 0:02:56]} 3. e3 {[%clk 0:03:01]}  Bg7 {[%clk 0:02:56]} 4. Be2 {[%clk 0:03:02]}  O-O {[%clk 0:02:57]} 5. O-O {[%clk 0:03:03]}  d6 {[%clk 0:02:57]} 6. c4 {[%clk 0:03:03]}  Nbd7 {[%clk 0:02:57]} 7. Nc3 {[%clk 0:03:04]}  b6 {[%clk 0:02:57]} 8. d5 {[%clk 0:03:04]}  e5 {[%clk 0:02:54]} 9. dxe6 {[%clk 0:02:59]}  fxe6 {[%clk 0:02:55]} 10. Nd4 {[%clk 0:02:59]}  Nc5 {[%clk 0:02:14]} 11. Bf3 {[%clk 0:02:57]}  d5 {[%clk 0:02:08]} 12. Nc6 {[%clk 0:02:48]}  Qd6 {[%clk 0:01:51]} 13. cxd5 {[%clk 0:02:48]}  exd5 {[%clk 0:01:46]} 14. Nxd5 {[%clk 0:02:46]}  Kh8 {[%clk 0:01:33]} 15. Nc3 {[%clk 0:02:09]}  Nd3 {[%clk 0:01:23]} 16. Nd4 {[%clk 0:02:01]}  Ba6 {[%clk 0:01:13]} 17. Bxa8 {[%clk 0:01:50]}  Rxa8 {[%clk 0:01:03]} 18. Ncb5 {[%clk 0:01:46]}  Bxb5 {[%clk 0:00:46]} 19. Nxb5 {[%clk 0:01:47]} 1-0


[Site "https://www.chess.com"]

[Event "Titled Tuesday Blitz June 27 Early 2023"]
[White "Bharath Subramaniyam H"]
[Black "kuanysh1981"]
[WhiteFideId "46634827"]
[WhiteElo "2817"]
[BlackElo "2539"]
[Result "1-0"]
[Round "5"]
[TimeControl "180+2"]
[Date "2023.06.27"]
[WhiteClock "0:00:27"]
[BlackClock "0:00:12"]
[Board "83"]

1. b3 {[%clk 0:02:56]}  Nf6 {[%clk 0:02:55]} 2. Bb2 {[%clk 0:02:55]}  e6 {[%clk 0:02:55]} 3. Nf3 {[%clk 0:02:55]}  Be7 {[%clk 0:02:55]} 4. g4 {[%clk 0:02:54]}  O-O {[%clk 0:02:56]} 5. g5 {[%clk 0:02:54]}  Nd5 {[%clk 0:02:54]} 6. c4 {[%clk 0:02:51]}  Nb6 {[%clk 0:02:50]} 7. h4 {[%clk 0:02:48]}  d5 {[%clk 0:02:49]} 8. e3 {[%clk 0:02:45]}  c5 {[%clk 0:02:49]} 9. Qc2 {[%clk 0:02:22]}  dxc4 {[%clk 0:02:44]} 10. bxc4 {[%clk 0:02:20]}  Nc6 {[%clk 0:02:44]} 11. Nc3 {[%clk 0:02:12]}  Nb4 {[%clk 0:02:42]} 12. Qb1 {[%clk 0:02:11]}  Bd7 {[%clk 0:02:33]} 13. a3 {[%clk 0:02:08]}  Nc6 {[%clk 0:02:33]} 14. Bd3 {[%clk 0:02:06]}  Na5 {[%clk 0:01:18]} 15. Ne5 {[%clk 0:01:42]}  Bc6 {[%clk 0:01:11]} 16. Rg1 {[%clk 0:01:34]}  Nb3 {[%clk 0:01:06]} 17. Bxh7+ {[%clk 0:01:16]}  Kh8 {[%clk 0:01:06]} 18. g6 {[%clk 0:01:16]}  Qxd2+ {[%clk 0:01:01]} 19. Kf1 {[%clk 0:01:17]}  Bxh4 {[%clk 0:00:53]} 20. Qe1 {[%clk 0:01:02]}  Qxb2 {[%clk 0:00:48]} 21. Ra2 {[%clk 0:00:57]}  Bxf2 {[%clk 0:00:23]} 22. Rxb2 {[%clk 0:00:54]}  Bxe1 {[%clk 0:00:23]} 23. Kxe1 {[%clk 0:00:54]}  Na5 {[%clk 0:00:21]} 24. gxf7 {[%clk 0:00:47]}  g6 {[%clk 0:00:12]} 25. Nxg6+ {[%clk 0:00:43]}  Kg7 {[%clk 0:00:12]} 26. Nxf8+ {[%clk 0:00:40]}  Kxf7 {[%clk 0:00:12]} 27. Rf2+ {[%clk 0:00:38]}  Ke7 {[%clk 0:00:12]} 28. Rg7+ {[%clk 0:00:37]}  Kd6 {[%clk 0:00:12]} 29. Rf6 {[%clk 0:00:28]}  Naxc4 {[%clk 0:00:12]} 30. Rxe6# {[%clk 0:00:27]} 1-0


[Site "https://www.chess.com"]

[Event "Titled Tuesday Blitz June 27 Early 2023"]
[White "Vakhlamov, Igor L."]
[Black "Alvarado Diaz, Alejandro"]
[WhiteFideId "24126748"]
[BlackFideId "2276119"]
[WhiteElo "2780"]
[BlackElo "2527"]
[Result "1-0"]
[Round "5"]
[TimeControl "180+2"]
[Date "2023.06.27"]
[WhiteClock "0:02:24"]
[BlackClock "0:00:10"]
[Board "88"]

1. e4 {[%clk 0:02:58]}  c5 {[%clk 0:02:59]} 2. Nf3 {[%clk 0:02:57]}  d6 {[%clk 0:02:58]} 3. Nc3 {[%clk 0:02:57]}  Nf6 {[%clk 0:02:58]} 4. d4 {[%clk 0:02:58]}  cxd4 {[%clk 0:02:57]} 5. Qxd4 {[%clk 0:02:59]}  Nc6 {[%clk 0:02:56]} 6. Bb5 {[%clk 0:02:59]}  Bd7 {[%clk 0:02:55]} 7. Bxc6 {[%clk 0:02:57]}  bxc6 {[%clk 0:02:55]} 8. e5 {[%clk 0:02:56]}  c5 {[%clk 0:02:30]} 9. Qc4 {[%clk 0:02:54]}  dxe5 {[%clk 0:02:12]} 10. Nxe5 {[%clk 0:02:55]}  e6 {[%clk 0:02:10]} 11. Bg5 {[%clk 0:02:51]}  Be7 {[%clk 0:01:50]} 12. O-O-O {[%clk 0:02:48]}  Nd5 {[%clk 0:00:47]} 13. Bxe7 {[%clk 0:02:46]}  Qxe7 {[%clk 0:00:47]} 14. Nxd7 {[%clk 0:02:41]}  Qxd7 {[%clk 0:00:29]} 15. Nxd5 {[%clk 0:02:40]}  exd5 {[%clk 0:00:27]} 16. Rhe1+ {[%clk 0:02:35]}  Kf8 {[%clk 0:00:26]} 17. Rxd5 {[%clk 0:02:36]}  Qc6 {[%clk 0:00:16]} 18. Rxc5 {[%clk 0:02:27]}  Qh6+ {[%clk 0:00:15]} 19. f4 {[%clk 0:02:24]}  g6 {[%clk 0:00:13]} 20. Rc7 {[%clk 0:02:24]}  Qg7 {[%clk 0:00:12]} 21. Rc8+ {[%clk 0:02:23]}  Rxc8 {[%clk 0:00:10]} 22. Qxc8# {[%clk 0:02:24]} 1-0


[Site "https://www.chess.com"]

[Event "Titled Tuesday Blitz June 27 Early 2023"]
[White "Panesar Vedant"]
[Black "Mogirzan, Matei-Valeriu"]
[WhiteFideId "35033018"]
[BlackFideId "1257455"]
[WhiteElo "2739"]
[BlackElo "2522"]
[Result "1-0"]
[Round "5"]
[TimeControl "180+2"]
[Date "2023.06.27"]
[WhiteClock "0:00:17"]
[BlackClock "0:00:09"]
[Board "89"]

1. e4 {[%clk 0:03:00]}  e5 {[%clk 0:02:57]} 2. Nf3 {[%clk 0:02:52]}  Nf6 {[%clk 0:02:56]} 3. Nxe5 {[%clk 0:02:52]}  Nc6 {[%clk 0:02:49]} 4. Nxc6 {[%clk 0:02:51]}  dxc6 {[%clk 0:02:46]} 5. d3 {[%clk 0:02:52]}  Bc5 {[%clk 0:02:41]} 6. Be2 {[%clk 0:02:40]}  h5 {[%clk 0:02:36]} 7. c3 {[%clk 0:02:03]}  Ng4 {[%clk 0:02:23]} 8. d4 {[%clk 0:01:58]}  Qh4 {[%clk 0:02:20]} 9. g3 {[%clk 0:01:50]}  Qf6 {[%clk 0:02:14]} 10. f3 {[%clk 0:01:27]}  h4 {[%clk 0:02:03]} 11. Rg1 {[%clk 0:01:15]}  hxg3 {[%clk 0:01:56]} 12. hxg3 {[%clk 0:01:10]}  Rh2 {[%clk 0:01:32]} 13. dxc5 {[%clk 0:01:04]}  Be6 {[%clk 0:01:21]} 14. Qd4 {[%clk 0:01:00]}  Bc4 {[%clk 0:00:59]} 15. Qxc4 {[%clk 0:00:43]}  Ne5 {[%clk 0:00:54]} 16. Qd4 {[%clk 0:00:25]}  Rxe2+ {[%clk 0:00:53]} 17. Kxe2 {[%clk 0:00:21]}  Qxf3+ {[%clk 0:00:53]} 18. Ke1 {[%clk 0:00:20]}  Nd3+ {[%clk 0:00:38]} 19. Kd2 {[%clk 0:00:20]}  Rd8 {[%clk 0:00:34]} 20. Rd1 {[%clk 0:00:14]}  Nf2 {[%clk 0:00:22]} 21. Kc2 {[%clk 0:00:07]}  Rxd4 {[%clk 0:00:11]} 22. Rxd4 {[%clk 0:00:07]}  Qe2+ {[%clk 0:00:07]} 23. Nd2 {[%clk 0:00:07]}  Ng4 {[%clk 0:00:06]} 24. b4 {[%clk 0:00:07]}  Ne3+ {[%clk 0:00:06]} 25. Kb3 {[%clk 0:00:08]}  Nd1 {[%clk 0:00:03]} 26. Nc4 {[%clk 0:00:06]}  b5 {[%clk 0:00:02]} 27. cxb6 {[%clk 0:00:06]}  axb6 {[%clk 0:00:02]} 28. Bb2 {[%clk 0:00:06]}  c5 {[%clk 0:00:02]} 29. Rdxd1 {[%clk 0:00:06]}  b5 {[%clk 0:00:02]} 30. Ne3 {[%clk 0:00:04]}  c4+ {[%clk 0:00:03]} 31. Ka3 {[%clk 0:00:04]}  Qxe3 {[%clk 0:00:03]} 32. Rd4 {[%clk 0:00:05]}  Qg5 {[%clk 0:00:02]} 33. Rad1 {[%clk 0:00:05]}  Ke7 {[%clk 0:00:02]} 34. Bc1 {[%clk 0:00:05]}  Qe5 {[%clk 0:00:02]} 35. Kb2 {[%clk 0:00:06]}  f6 {[%clk 0:00:02]} 36. Bf4 {[%clk 0:00:06]}  Qh5 {[%clk 0:00:01]} 37. Bxc7 {[%clk 0:00:06]}  Qe2+ {[%clk 0:00:01]} 38. R1d2 {[%clk 0:00:07]}  Qe3 {[%clk 0:00:01]} 39. Bd6+ {[%clk 0:00:08]}  Kf7 {[%clk 0:00:02]} 40. Bf4 {[%clk 0:00:08]}  Qf3 {[%clk 0:00:02]} 41. e5 {[%clk 0:00:09]}  fxe5 {[%clk 0:00:01]} 42. Bxe5 {[%clk 0:00:10]}  g5 {[%clk 0:00:02]} 43. Bf4 {[%clk 0:00:09]}  g4 {[%clk 0:00:01]} 44. Be5 {[%clk 0:00:10]}  Kg6 {[%clk 0:00:02]} 45. Bd6 {[%clk 0:00:10]}  Qf1 {[%clk 0:00:01]} 46. Bf4 {[%clk 0:00:10]}  Kf7 {[%clk 0:00:01]} 47. Be3 {[%clk 0:00:10]}  Qf3 {[%clk 0:00:01]} 48. Rf4+ {[%clk 0:00:10]}  Ke6 {[%clk 0:00:02]} 49. Rxf3 {[%clk 0:00:11]}  gxf3 {[%clk 0:00:03]} 50. Rf2 {[%clk 0:00:11]}  Ke5 {[%clk 0:00:04]} 51. Rxf3 {[%clk 0:00:12]}  Ke4 {[%clk 0:00:05]} 52. Rf4+ {[%clk 0:00:12]}  Kxe3 {[%clk 0:00:06]} 53. Rf5 {[%clk 0:00:13]}  Ke4 {[%clk 0:00:06]} 54. Rxb5 {[%clk 0:00:13]}  Kf3 {[%clk 0:00:06]} 55. Rc5 {[%clk 0:00:14]}  Kxg3 {[%clk 0:00:07]} 56. Rxc4 {[%clk 0:00:15]}  Kf3 {[%clk 0:00:08]} 57. Rd4 {[%clk 0:00:16]}  Ke3 {[%clk 0:00:09]} 58. a4 {[%clk 0:00:17]} 1-0


[Site "https://www.chess.com"]

[Event "Titled Tuesday Blitz June 27 Early 2023"]
[White "Berezin, Viktor"]
[Black "gau_npukyputb"]
[WhiteFideId "14107872"]
[WhiteElo "2519"]
[BlackElo "2724"]
[Result "1-0"]
[Round "5"]
[TimeControl "180+2"]
[Date "2023.06.27"]
[WhiteClock "0:00:09"]
[BlackClock "0:00:00"]
[Board "90"]

1. d4 {[%clk 0:03:00]}  Nc6 {[%clk 0:02:58]} 2. Nf3 {[%clk 0:02:57]}  d5 {[%clk 0:02:57]} 3. c4 {[%clk 0:02:55]}  Bg4 {[%clk 0:02:57]} 4. e3 {[%clk 0:02:55]}  e6 {[%clk 0:02:57]} 5. Be2 {[%clk 0:02:54]}  Nf6 {[%clk 0:02:56]} 6. Nbd2 {[%clk 0:02:54]}  Bd6 {[%clk 0:02:56]} 7. h3 {[%clk 0:02:54]}  Bh5 {[%clk 0:02:56]} 8. O-O {[%clk 0:02:52]}  O-O {[%clk 0:02:56]} 9. a3 {[%clk 0:02:50]}  a5 {[%clk 0:02:55]} 10. b3 {[%clk 0:02:48]}  Re8 {[%clk 0:02:53]} 11. Bb2 {[%clk 0:02:48]}  Ne4 {[%clk 0:02:52]} 12. Nxe4 {[%clk 0:02:41]}  dxe4 {[%clk 0:02:53]} 13. Ne5 {[%clk 0:02:41]}  Bxe2 {[%clk 0:02:49]} 14. Qxe2 {[%clk 0:02:40]}  Bxe5 {[%clk 0:02:48]} 15. dxe5 {[%clk 0:02:40]}  Qg5 {[%clk 0:02:48]} 16. Qg4 {[%clk 0:02:33]}  Qg6 {[%clk 0:02:27]} 17. Rfd1 {[%clk 0:02:22]}  Red8 {[%clk 0:02:27]} 18. Qxg6 {[%clk 0:02:07]}  hxg6 {[%clk 0:02:27]} 19. Kf1 {[%clk 0:02:07]}  Kf8 {[%clk 0:02:26]} 20. Ke2 {[%clk 0:02:06]}  Ke7 {[%clk 0:02:26]} 21. f3 {[%clk 0:02:05]}  exf3+ {[%clk 0:02:25]} 22. gxf3 {[%clk 0:02:04]}  g5 {[%clk 0:02:23]} 23. Rg1 {[%clk 0:02:01]}  Rh8 {[%clk 0:02:04]} 24. Rg3 {[%clk 0:01:55]}  f6 {[%clk 0:02:00]} 25. f4 {[%clk 0:01:45]}  fxe5 {[%clk 0:01:39]} 26. Rxg5 {[%clk 0:01:38]}  Rxh3 {[%clk 0:01:35]} 27. Rxg7+ {[%clk 0:01:38]}  Kf6 {[%clk 0:01:30]} 28. Rag1 {[%clk 0:01:29]}  Kf5 {[%clk 0:01:25]} 29. fxe5 {[%clk 0:01:15]}  Rh2+ {[%clk 0:01:09]} 30. R1g2 {[%clk 0:00:50]}  Rxg2+ {[%clk 0:01:08]} 31. Rxg2 {[%clk 0:00:50]}  Re8 {[%clk 0:00:36]} 32. Rf2+ {[%clk 0:00:49]}  Kg5 {[%clk 0:00:35]} 33. Rf7 {[%clk 0:00:47]}  Re7 {[%clk 0:00:35]} 34. Rf6 {[%clk 0:00:45]}  b6 {[%clk 0:00:29]} 35. Bc3 {[%clk 0:00:45]}  Re8 {[%clk 0:00:27]} 36. Kf3 {[%clk 0:00:43]}  Re7 {[%clk 0:00:24]} 37. Ke4 {[%clk 0:00:43]}  Nd8 {[%clk 0:00:20]} 38. Rf8 {[%clk 0:00:39]}  Nf7 {[%clk 0:00:20]} 39. Rg8+ {[%clk 0:00:38]}  Kh5 {[%clk 0:00:19]} 40. b4 {[%clk 0:00:23]}  Ng5+ {[%clk 0:00:18]} 41. Kd3 {[%clk 0:00:22]}  Rd7+ {[%clk 0:00:17]} 42. Kc2 {[%clk 0:00:23]}  axb4 {[%clk 0:00:16]} 43. axb4 {[%clk 0:00:23]}  Kg4 {[%clk 0:00:09]} 44. Rf8 {[%clk 0:00:20]}  Nf3 {[%clk 0:00:05]} 45. Rf4+ {[%clk 0:00:20]}  Kg3 {[%clk 0:00:05]} 46. c5 {[%clk 0:00:18]}  bxc5 {[%clk 0:00:05]} 47. bxc5 {[%clk 0:00:19]}  c6 {[%clk 0:00:05]} 48. Ra4 {[%clk 0:00:19]}  Kf2 {[%clk 0:00:05]} 49. Ra6 {[%clk 0:00:19]}  Rc7 {[%clk 0:00:05]} 50. Bd4 {[%clk 0:00:17]}  Ke2 {[%clk 0:00:04]} 51. Kc3 {[%clk 0:00:15]}  Rc8 {[%clk 0:00:04]} 52. Ra2+ {[%clk 0:00:15]}  Kf1 {[%clk 0:00:03]} 53. Ra1+ {[%clk 0:00:13]}  Ke2 {[%clk 0:00:03]} 54. Ra2+ {[%clk 0:00:14]}  Kf1 {[%clk 0:00:03]} 55. Ra7 {[%clk 0:00:14]}  Ke2 {[%clk 0:00:03]} 56. Re7 {[%clk 0:00:14]}  Ra8 {[%clk 0:00:03]} 57. Rxe6 {[%clk 0:00:14]}  Ra3+ {[%clk 0:00:03]} 58. Kb4 {[%clk 0:00:14]}  Ra6 {[%clk 0:00:02]} 59. Re8 {[%clk 0:00:13]}  Kd3 {[%clk 0:00:03]} 60. e6 {[%clk 0:00:12]}  Nd2 {[%clk 0:00:03]} 61. e7 {[%clk 0:00:12]}  Ra7 {[%clk 0:00:02]} 62. Bf6 {[%clk 0:00:10]}  Ne4 {[%clk 0:00:00]} 63. Bh4 {[%clk 0:00:09]} 1-0


[Site "https://www.chess.com"]

[Event "Titled Tuesday Blitz June 27 Early 2023"]
[White "Vyatkin, Dmitry"]
[Black "Taspinar, Yanki"]
[WhiteFideId "4171900"]
[BlackFideId "34561188"]
[WhiteElo "2508"]
[BlackElo "2665"]
[Result "0-1"]
[Round "5"]
[TimeControl "180+2"]
[Date "2023.06.27"]
[WhiteClock "0:00:03"]
[BlackClock "0:00:09"]
[Board "95"]

1. d4 {[%clk 0:02:57]}  Nf6 {[%clk 0:02:37]} 2. c4 {[%clk 0:02:56]}  g6 {[%clk 0:02:36]} 3. g3 {[%clk 0:02:55]}  Bg7 {[%clk 0:02:35]} 4. Bg2 {[%clk 0:02:55]}  d5 {[%clk 0:02:36]} 5. cxd5 {[%clk 0:02:53]}  Nxd5 {[%clk 0:02:37]} 6. Nf3 {[%clk 0:02:52]}  O-O {[%clk 0:02:37]} 7. O-O {[%clk 0:02:51]}  Nc6 {[%clk 0:02:29]} 8. Nc3 {[%clk 0:02:47]}  Nb6 {[%clk 0:02:26]} 9. e3 {[%clk 0:02:46]}  e5 {[%clk 0:02:20]} 10. d5 {[%clk 0:02:29]}  Na5 {[%clk 0:02:16]} 11. e4 {[%clk 0:02:26]}  c6 {[%clk 0:02:17]} 12. b3 {[%clk 0:01:32]}  cxd5 {[%clk 0:02:07]} 13. exd5 {[%clk 0:01:32]}  e4 {[%clk 0:02:05]} 14. Nxe4 {[%clk 0:01:32]}  Bf5 {[%clk 0:01:31]} 15. Bg5 {[%clk 0:01:18]}  f6 {[%clk 0:01:16]} 16. Bd2 {[%clk 0:01:18]}  Bxe4 {[%clk 0:01:17]} 17. Bxa5 {[%clk 0:01:18]}  Qxd5 {[%clk 0:01:09]} 18. Qxd5+ {[%clk 0:01:15]}  Nxd5 {[%clk 0:01:07]} 19. Rad1 {[%clk 0:01:12]}  b6 {[%clk 0:01:04]} 20. Bd2 {[%clk 0:00:54]}  f5 {[%clk 0:01:01]} 21. Ng5 {[%clk 0:00:48]}  Bxg2 {[%clk 0:00:59]} 22. Kxg2 {[%clk 0:00:49]}  Rfe8 {[%clk 0:00:59]} 23. Rfe1 {[%clk 0:00:47]}  Bf6 {[%clk 0:00:46]} 24. Ne6 {[%clk 0:00:46]}  Re7 {[%clk 0:00:29]} 25. Nf4 {[%clk 0:00:23]}  Nxf4+ {[%clk 0:00:22]} 26. Bxf4 {[%clk 0:00:23]}  Rxe1 {[%clk 0:00:20]} 27. Rxe1 {[%clk 0:00:24]}  Rd8 {[%clk 0:00:21]} 28. Rc1 {[%clk 0:00:21]}  Rd7 {[%clk 0:00:19]} 29. Rc8+ {[%clk 0:00:20]}  Kf7 {[%clk 0:00:19]} 30. h4 {[%clk 0:00:19]}  Re7 {[%clk 0:00:16]} 31. Ra8 {[%clk 0:00:18]}  Rd7 {[%clk 0:00:16]} 32. b4 {[%clk 0:00:17]}  Ke6 {[%clk 0:00:16]} 33. b5 {[%clk 0:00:17]}  Kd5 {[%clk 0:00:16]} 34. Bb8 {[%clk 0:00:15]}  Rd8 {[%clk 0:00:13]} 35. Rxa7 {[%clk 0:00:10]}  Rxb8 {[%clk 0:00:13]} 36. Rxh7 {[%clk 0:00:11]}  Bd4 {[%clk 0:00:13]} 37. a4 {[%clk 0:00:05]}  Ra8 {[%clk 0:00:13]} 38. Rh6 {[%clk 0:00:05]}  Rxa4 {[%clk 0:00:12]} 39. Rxg6 {[%clk 0:00:06]}  Ra2 {[%clk 0:00:13]} 40. h5 {[%clk 0:00:06]}  Rxf2+ {[%clk 0:00:13]} 41. Kh3 {[%clk 0:00:07]}  Rf1 {[%clk 0:00:12]} 42. Kh2 {[%clk 0:00:07]}  Rc1 {[%clk 0:00:10]} 43. Rg5 {[%clk 0:00:07]}  Ke4 {[%clk 0:00:09]} 44. g4 {[%clk 0:00:06]}  f4 {[%clk 0:00:08]} 45. h6 {[%clk 0:00:05]}  f3 {[%clk 0:00:08]} 46. Rf5 {[%clk 0:00:06]}  f2 {[%clk 0:00:07]} 47. Kg2 {[%clk 0:00:05]}  Rg1+ {[%clk 0:00:07]} 48. Kh2 {[%clk 0:00:05]}  f1=Q {[%clk 0:00:08]} 49. Rxf1 {[%clk 0:00:03]}  Rxf1 {[%clk 0:00:09]} 0-1


[Site "https://www.chess.com"]

[Event "Titled Tuesday Blitz June 27 Early 2023"]
[White "Karttunen, Mika"]
[Black "Bagwe Gaurang"]
[WhiteFideId "502081"]
[BlackFideId "45039895"]
[WhiteElo "2653"]
[BlackElo "2508"]
[Result "1/2-1/2"]
[Round "5"]
[TimeControl "180+2"]
[Date "2023.06.27"]
[WhiteClock "0:00:20"]
[BlackClock "0:00:47"]
[Board "96"]

1. c4 {[%clk 0:02:57]}  c5 {[%clk 0:02:56]} 2. Nc3 {[%clk 0:02:55]}  Nc6 {[%clk 0:02:55]} 3. g3 {[%clk 0:02:55]}  g6 {[%clk 0:02:54]} 4. Bg2 {[%clk 0:02:55]}  Bg7 {[%clk 0:02:55]} 5. Nf3 {[%clk 0:02:55]}  e6 {[%clk 0:02:55]} 6. O-O {[%clk 0:02:51]}  Nge7 {[%clk 0:02:55]} 7. e3 {[%clk 0:02:51]}  d5 {[%clk 0:02:54]} 8. cxd5 {[%clk 0:02:34]}  exd5 {[%clk 0:02:53]} 9. d4 {[%clk 0:02:20]}  cxd4 {[%clk 0:02:52]} 10. exd4 {[%clk 0:02:19]}  Bg4 {[%clk 0:02:52]} 11. Bg5 {[%clk 0:02:11]}  O-O {[%clk 0:02:49]} 12. h3 {[%clk 0:02:02]}  Be6 {[%clk 0:02:47]} 13. Qd2 {[%clk 0:01:48]}  Qd7 {[%clk 0:02:44]} 14. g4 {[%clk 0:01:37]}  Nc8 {[%clk 0:02:31]} 15. Bh6 {[%clk 0:01:21]}  f6 {[%clk 0:02:25]} 16. Bxg7 {[%clk 0:01:19]}  Kxg7 {[%clk 0:02:25]} 17. Na4 {[%clk 0:01:14]}  b6 {[%clk 0:02:23]} 18. Nc3 {[%clk 0:01:03]}  Nd6 {[%clk 0:02:21]} 19. Rfe1 {[%clk 0:01:01]}  Bg8 {[%clk 0:02:18]} 20. Re2 {[%clk 0:00:54]}  Rae8 {[%clk 0:02:17]} 21. Rae1 {[%clk 0:00:54]}  Rxe2 {[%clk 0:02:15]} 22. Rxe2 {[%clk 0:00:54]}  Re8 {[%clk 0:02:15]} 23. Rxe8 {[%clk 0:00:53]}  Qxe8 {[%clk 0:02:15]} 24. Qf4 {[%clk 0:00:51]}  Qe7 {[%clk 0:02:08]} 25. g5 {[%clk 0:00:49]}  fxg5 {[%clk 0:01:47]} 26. Nxg5 {[%clk 0:00:49]}  Qf6 {[%clk 0:01:46]} 27. Qc1 {[%clk 0:00:20]}  Nxd4 {[%clk 0:01:41]} 28. Qd2 {[%clk 0:00:19]}  Nc4 {[%clk 0:01:34]} 29. Qc1 {[%clk 0:00:18]}  Ne5 {[%clk 0:01:30]} 30. h4 {[%clk 0:00:18]}  h6 {[%clk 0:01:30]} 31. Nh3 {[%clk 0:00:18]}  Nef3+ {[%clk 0:01:29]} 32. Kh1 {[%clk 0:00:18]}  Be6 {[%clk 0:01:26]} 33. Qe3 {[%clk 0:00:18]}  Bxh3 {[%clk 0:01:20]} 34. Bxh3 {[%clk 0:00:18]}  Qxh4 {[%clk 0:01:20]} 35. Kg2 {[%clk 0:00:18]}  Qg5+ {[%clk 0:01:15]} 36. Qxg5 {[%clk 0:00:18]}  Nxg5 {[%clk 0:01:16]} 37. Nxd5 {[%clk 0:00:18]}  Nxh3 {[%clk 0:01:16]} 38. Kxh3 {[%clk 0:00:19]}  Ne6 {[%clk 0:01:14]} 39. Ne7 {[%clk 0:00:19]}  a5 {[%clk 0:01:12]} 40. Nd5 {[%clk 0:00:18]}  b5 {[%clk 0:01:11]} 41. b3 {[%clk 0:00:19]}  a4 {[%clk 0:01:10]} 42. bxa4 {[%clk 0:00:19]}  bxa4 {[%clk 0:01:11]} 43. Nc3 {[%clk 0:00:19]}  Nc5 {[%clk 0:01:11]} 44. Kg4 {[%clk 0:00:19]}  Kf6 {[%clk 0:01:11]} 45. Kf4 {[%clk 0:00:19]}  g5+ {[%clk 0:01:11]} 46. Kg4 {[%clk 0:00:19]}  Kg6 {[%clk 0:01:11]} 47. Kf3 {[%clk 0:00:19]}  Kf5 {[%clk 0:01:11]} 48. Ke3 {[%clk 0:00:20]}  Ke5 {[%clk 0:01:07]} 49. a3 {[%clk 0:00:20]}  h5 {[%clk 0:01:07]} 50. Ne2 {[%clk 0:00:19]}  h4 {[%clk 0:01:07]} 51. f4+ {[%clk 0:00:19]}  gxf4+ {[%clk 0:01:04]} 52. Nxf4 {[%clk 0:00:20]}  Ne6 {[%clk 0:01:01]} 53. Ng6+ {[%clk 0:00:20]}  Kd5 {[%clk 0:01:01]} 54. Nxh4 {[%clk 0:00:21]}  Kc4 {[%clk 0:01:01]} 55. Nf3 {[%clk 0:00:21]}  Kb3 {[%clk 0:01:00]} 56. Kd3 {[%clk 0:00:21]}  Nf4+ {[%clk 0:00:56]} 57. Kd2 {[%clk 0:00:21]}  Kxa3 {[%clk 0:00:54]} 58. Kc2 {[%clk 0:00:21]}  Ka2 {[%clk 0:00:49]} 59. Nd4 {[%clk 0:00:21]}  Nd5 {[%clk 0:00:48]} 60. Nb5 {[%clk 0:00:20]}  a3 {[%clk 0:00:47]} 61. Nxa3 {[%clk 0:00:20]} 1/2-1/2


[Site "https://www.chess.com"]